bitfinex-derivatives/quotes_SOLF0:USTF0_20220110
["timestamp","ask_amount","ask_price","bid_price","bid_amount"]
[1641848209485,5.90587812,135.46,135.43,27.66479]
[1641848209684,9.90587812,135.46,135.43,27.66479]
[1641848210384,5.90587812,135.46,135.43,27.66479]
[1641848211387,27.66479,135.48,135.43,27.66479]
[1641848211590,27.66479,135.48,135.43,36.76579]
[1641848212287,31.66479,135.48,135.43,36.76579]
[1641848212489,4.0,135.46,135.43,9.101]
[1641848212788,1.845,135.47,135.39,36.01179]
[1641848212986,1.846,135.45,135.39,36.01179]
[1641848213187,4.0,135.43,135.39,36.01179]
[1641848213387,4.0,135.42,135.39,36.01179]
[1641848213589,1.846,135.44,135.39,36.01179]
[1641848213787,1.846,135.44,135.36,27.66479]
[1641848213788,4.0,135.4,135.36,27.66479]
[1641848213989,4.0,135.39,135.35,41.35208086]
[1641848214191,4.0,135.39,135.32,41.35208086]
[1641848214988,4.0,135.41,135.32,41.35208086]
[1641848215191,29.51079,135.4,135.33,27.66479]
[1641848215389,29.51079,135.4,135.33,36.10679]
[1641848215991,29.51079,135.4,135.34,2.50914321]
[1641848216390,33.51079,135.4,135.34,2.50914321]
[1641848216590,4.0,135.39,135.34,2.50914321]
[1641848216992,4.0,135.35,135.34,2.50914321]
[1641848217193,59.32958,135.35,135.34,4.321e-05]
[1641848217391,61.17658,135.35,135.34,4.321e-05]
[1641848217792,61.17658,135.35,135.29,41.35208086]
[1641848217992,5.847,135.34,135.26,10.1427825]
[1641848218191,59.32958,135.35,135.26,10.1427825]
[1641848218894,55.32958,135.35,135.26,10.1427825]
[1641848219295,55.32958,135.35,135.27,15.59629019]
[1641848219494,55.32958,135.35,135.27,22.54729019]
[1641848221195,27.66479,135.32,135.27,22.54729019]
[1641848221595,27.66479,135.32,135.27,15.59629019]
[1641848221796,29.51179,135.35,135.27,15.59629019]
[1641848221996,1.847,135.37,135.27,22.78129019]
[1641848222195,4.0,135.38,135.27,7.185]
[1641848222996,4.0,135.38,135.28,15.59629019]
[1641848223195,1.847,135.37,135.28,15.59629019]
[1641848223395,27.66479,135.35,135.28,15.59629019]
[1641848224195,1.847,135.34,135.28,15.59629019]
[1641848224697,1.847,135.34,135.28,4.1844582]
[1641848225297,27.66479,135.32,135.28,4.1844582]
[1641848227001,4.0,135.3,135.28,4.1844582]
[1641848227401,29.51179,135.29,135.28,4.1844582]
[1641848227800,29.51179,135.29,135.22,26.83629019]
[1641848228002,27.66479,135.29,135.22,26.83629019]
[1641848228799,27.66479,135.29,135.22,30.83629019]
[1641848228999,27.66479,135.29,135.22,26.83629019]
[1641848229202,27.66479,135.29,135.22,11.24]
[1641848230702,27.66479,135.29,135.22,26.83629019]
[1641848231202,27.66479,135.29,135.22,30.83629019]
[1641848231603,29.51279,135.32,135.26,4.0]
[1641848231902,1.847,135.37,135.27,4.0]
[1641848232104,1.847,135.37,135.28,4.0]
[1641848232309,4.0,135.4,135.27,5.847]
[1641848232503,1.847,135.39,135.28,76.4821]
[1641848233004,1.847,135.39,135.28,72.4821]
[1641848233205,4.0,135.37,135.28,72.4821]
[1641848233405,31.66479,135.37,135.29,27.66479]
[1641848233605,27.66479,135.37,135.29,34.14379]
[1641848235908,27.66479,135.39,135.29,34.14379]
[1641848236107,27.66479,135.39,135.32,4.0]
[1641848236310,27.66479,135.39,135.32,8.108]
[1641848236707,27.66479,135.39,135.32,12.108]
[1641848236906,27.66479,135.39,135.33,5.91137168]
[1641848237110,27.66479,135.39,135.33,7.75737168]
[1641848237307,27.66479,135.39,135.33,1.846]
[1641848237508,27.66479,135.39,135.35,4.0]
[1641848237707,1.846,135.48,135.35,11.652]
[1641848237908,1.846,135.48,135.36,4.0]
[1641848238108,1.846,135.48,135.37,4.0]
[1641848238307,15.59629019,135.49,135.37,4.0]
[1641848238908,4.0,135.5,135.37,77.5451]
[1641848239108,1.846,135.51,135.36,7.75615456]
[1641848239109,1.845,135.49,135.36,1.846]
[1641848239308,5.845,135.5,135.38,4.0]
[1641848239507,27.66479,135.46,135.38,11.342]
[1641848239708,27.66479,135.46,135.38,7.342]
[1641848241115,27.66479,135.46,135.36,69.6312]
[1641848241412,27.66479,135.46,135.35,15.59629019]
[1641848241413,27.66479,135.43,135.35,15.59629019]
[1641848241613,27.66479,135.43,135.34,21.50704156]
[1641848242012,27.66479,135.43,135.34,15.59629019]
[1641848242212,1.846,135.42,135.34,15.59629019]
[1641848242413,1.846,135.42,135.35,4.0]
[1641848242715,27.66479,135.43,135.35,10.853]
[1641848243013,27.66479,135.43,135.39,4.18197255]
[1641848243213,27.66479,135.43,135.39,13.21697255]
[1641848244615,1.51735228,135.47,135.39,13.21697255]
[1641848244818,1.845,135.49,135.41,4.0]
[1641848245017,1.845,135.49,135.39,19.12561426]
[1641848245217,15.59629019,135.5,135.43,4.0]
[1641848245416,43.19708086,135.53,135.43,7.291]
[1641848245617,27.66479,135.52,135.45,27.66479]
[1641848247222,31.66479,135.54,135.45,27.66479]
[1641848247723,31.66479,135.54,135.45,31.66479]
[1641848247920,31.66479,135.54,135.46,4.0]
[1641848248121,31.66479,135.54,135.46,11.454]
[1641848248621,27.66479,135.54,135.46,11.454]
[1641848248821,27.66479,135.54,135.48,4.0]
[1641848249022,1.51599671,135.52,135.48,4.0]
[1641848249223,1.51599671,135.52,135.5,4.0]
[1641848249425,33.50979,135.58,135.5,10.124]
[1641848249624,27.66479,135.58,135.5,6.124]
[1641848249824,27.66479,135.58,135.53,4.0]
[1641848250024,27.66479,135.58,135.54,4.0]
[1641848250329,27.66479,135.58,135.53,7.898]
[1641848251723,27.66479,135.62,135.54,4.0]
[1641848251927,27.66479,135.62,135.57,4.0]
[1641848252124,27.66479,135.62,135.57,10.029]
[1641848252724,15.59629019,135.7,135.59,4.0]
[1641848253524,4.0,135.7,135.59,31.66479]
[1641848253724,4.0,135.67,135.59,27.66479]
[1641848253927,4.0,135.63,135.54,1.843]
[1641848254125,6.516,135.63,135.51,1.843]
[1641848254424,4.0,135.61,135.48,82.0384877]
[1641848254624,1.844,135.6,135.49,1.844]
[1641848254824,14.381,135.6,135.48,82.0384877]
[1641848255025,12.537,135.6,135.54,25.28616298]
[1641848255224,1.844,135.59,135.54,25.28616298]
[1641848255426,4.0,135.57,135.54,6.298e-05]
[1641848255624,29.50879,135.56,135.54,6.298e-05]
[1641848256024,1.844,135.56,135.54,6.298e-05]
[1641848256224,4.0,135.55,135.54,6.298e-05]
[1641848256425,4.0,135.55,135.42,1.844]
[1641848256625,4.0,135.5,135.42,1.844]
[1641848256826,4.0,135.47,135.39,15.59629019]
[1641848257024,8.678,135.47,135.39,15.59629019]
[1641848257427,12.678,135.47,135.36,11.3]
[1641848257626,27.66479,135.46,135.38,4.0]
[1641848257826,27.66479,135.48,135.38,4.0]
[1641848258028,27.66479,135.48,135.37,5.846]
[1641848258226,27.66479,135.48,135.36,68.87479449]
[1641848258627,4.0,135.45,135.36,27.66479]
[1641848258827,4.0,135.39,135.33,17.44229019]
[1641848259027,8.767,135.39,135.33,15.59629019]
[1641848259227,4.0,135.37,135.33,15.59629019]
[1641848259428,1.847,135.36,135.3,41.35208086]
[1641848259628,27.66479,135.32,135.3,41.35208086]
[1641848259828,35.30079,135.32,135.3,41.35208086]
[1641848260431,35.30079,135.32,135.23,5.847]
[1641848261029,27.66479,135.34,135.25,4.0]
[1641848261229,1.847,135.35,135.23,21.847]
[1641848261230,1.847,135.38,135.26,4.0]
[1641848261529,5.846,135.45,135.31,4.0]
[1641848261729,27.66479,135.39,135.31,9.067]
[1641848262530,1.847,135.4,135.34,20.0]
[1641848262730,1.846,135.45,135.34,7.445]
[1641848262930,4.18068521,135.46,135.34,7.445]
[1641848263431,4.0,135.43,135.34,7.445]
[1641848263632,27.66479,135.4,135.34,7.445]
[1641848264032,4.0,135.39,135.34,7.445]
[1641848264234,4.0,135.39,135.31,9.067]
[1641848264433,1.847,135.39,135.31,9.067]
[1641848265631,27.66479,135.37,135.31,9.067]
[1641848265833,1.847,135.39,135.31,9.067]
[1641848266033,1.847,135.42,135.34,4.0]
[1641848266235,1.847,135.46,135.34,6.097]
[1641848266432,4.18183364,135.44,135.34,6.097]
[1641848267235,8.18183364,135.44,135.34,6.097]
[1641848267434,1.846,135.43,135.34,6.097]
[1641848267634,27.66479,135.41,135.34,6.097]
[1641848268438,29.51079,135.43,135.34,6.097]
[1641848269537,29.51079,135.43,135.36,4.0]
[1641848269739,27.66479,135.46,135.37,4.0]
[1641848270038,1.846,135.49,135.37,30.593]
[1641848270239,1.845,135.52,135.38,5.845]
[1641848270440,4.18206252,135.43,135.38,73.3803]
[1641848270638,4.18206252,135.43,135.38,1.845]
[1641848270838,1e-08,135.43,135.38,1.845]
[1641848271238,1e-08,135.43,135.38,2.48304082]
[1641848271638,27.66479001,135.43,135.38,2.48304082]
[1641848272038,27.66479001,135.43,135.34,27.66479]
[1641848273040,27.66479001,135.43,135.35,2.48299045]
[1641848273442,1e-08,135.43,135.35,2.48299045]
[1641848273841,1e-08,135.43,135.35,8.311]
[1641848274042,1.846,135.44,135.38,1.1018915]
[1641848274241,55.32958,135.45,135.38,10.3558915]
[1641848274642,59.32958,135.45,135.38,10.3558915]
[1641848274842,4.0,135.44,135.38,10.3558915]
[1641848275042,1.846,135.43,135.38,10.3558915]
[1641848275843,1.846,135.44,135.38,10.3558915]
[1641848276442,4.18204784,135.42,135.38,10.3558915]
[1641848276642,4.18204784,135.42,135.38,1.1018915]
[1641848277443,4.18204784,135.42,135.36,1.14492071]
[1641848278246,4.18204784,135.42,135.38,20.0]
[1641848278445,1.846,135.52,135.38,5.694]
[1641848278646,1.845,135.5,135.38,5.694]
[1641848278847,5.845,135.52,135.38,27.539]
[1641848279045,1.845,135.52,135.39,4.0]
[1641848279245,1.845,135.52,135.38,31.539]
[1641848279445,1.845,135.54,135.43,4.0]
[1641848279646,1.845,135.57,135.45,24.0]
[1641848279846,1.845,135.57,135.51,27.66479]
[1641848280045,29.50879,135.58,135.51,35.59979]
[1641848280245,27.66479,135.58,135.51,7.935]
[1641848280446,27.66479,135.58,135.46,7.7497099]
[1641848280647,1.844,135.57,135.43,1.844]
[1641848280845,4.0,135.54,135.43,1.844]
[1641848281046,4.0,135.52,135.39,41.35208086]
[1641848281246,5.845,135.51,135.39,67.33355886]
[1641848281447,8.993,135.51,135.39,47.33355886]
[1641848281648,8.993,135.51,135.39,43.33355886]
[1641848281846,36.65779,135.51,135.42,27.66479]
[1641848282045,34.81279,135.51,135.42,27.66479]
[1641848282448,7.148,135.51,135.42,59.25779]
[1641848282649,1.845,135.52,135.42,59.25779]
[1641848282949,27.66479,135.53,135.42,35.25779]
[1641848283549,29.50979,135.53,135.42,35.25779]
[1641848284752,4.0,135.51,135.42,35.25779]
[1641848284952,4.0,135.49,135.38,1.845]
[1641848285153,10.712,135.49,135.4,1.98004296]
[1641848285353,5.845,135.48,135.43,2.49817708]
[1641848285955,4.0,135.46,135.43,2.49817708]
[1641848286155,4.0,135.45,135.4,1.98004296]
[1641848286357,4.0,135.41,135.4,1.98004296]
[1641848287258,9.391,135.42,135.4,1.98004296]
[1641848287562,1.846,135.44,135.4,1.98004296]
[1641848287757,1.846,135.44,135.31,41.35208086]
[1641848287958,27.66479,135.41,135.32,27.66479]
[1641848288358,27.66479,135.41,135.31,41.35208086]
[1641848288558,5.846,135.4,135.31,41.35208086]
[1641848288760,1.846,135.4,135.31,41.35208086]
[1641848288958,1.846,135.4,135.3,6.50166905]
[1641848288959,27.66479,135.41,135.3,47.85374991]
[1641848289160,27.66479,135.41,135.3,49.98974991]
[1641848289659,27.66479,135.41,135.33,15.58978704]
[1641848289860,27.66479,135.41,135.33,24.01978704]
[1641848290560,27.66479,135.41,135.34,2.50166905]
[1641848291664,27.66479,135.41,135.35,15.58978704]
[1641848292463,31.66479,135.41,135.35,15.58978704]
[1641848292862,11.75462177,135.4,135.34,18.09145609]
[1641848293063,4.0,135.38,135.34,3.58785609]
[1641848293261,5.846,135.37,135.34,3.58785609]
[1641848293463,1.846,135.37,135.32,10.12415856]
[1641848293664,4.0,135.36,135.32,10.12415856]
[1641848293864,55.32958,135.33,135.27,41.35208086]
[1641848294064,27.66479,135.33,135.27,41.35208086]
[1641848294865,27.66479,135.33,135.26,41.35208086]
[1641848295667,27.66479,135.33,135.24,73.89317739]
[1641848296266,27.66479,135.33,135.24,66.79501797]
[1641848297274,4.0,135.3,135.23,10.12415856]
[1641848297474,4.0,135.28,135.23,10.12415856]
[1641848297675,10.625,135.3,135.23,10.12415856]
[1641848297876,5.848,135.29,135.23,10.12415856]
[1641848298073,27.66479,135.26,135.22,10.12415856]
[1641848298273,33.49979,135.26,135.22,10.12415856]
[1641848298472,4.0,135.24,135.22,10.12415856]
[1641848298674,4.0,135.24,135.19,41.35208086]
[1641848299073,4.0,135.23,135.19,41.35208086]
[1641848299273,4.0,135.23,135.15,62.59946145]
[1641848299274,1.848,135.22,135.15,41.35208086]
[1641848299673,5.91683728,135.21,135.15,41.35208086]
[1641848299875,5.849,135.2,135.15,41.35208086]
[1641848300073,27.66479,135.18,135.15,41.35208086]
[1641848300275,29.51379,135.2,135.11,4.0]
[1641848300474,27.66479,135.2,135.14,20.0]
[1641848300773,1.849,135.27,135.15,4.0]
[1641848300974,1.848,135.29,135.15,10.407]
[1641848301173,1.848,135.31,135.18,4.0]
[1641848301377,1.848,135.31,135.18,9.881]
[1641848301973,27.66479,135.28,135.19,27.66479]
[1641848304183,4.18543906,135.32,135.22,4.0]
[1641848304380,1.848,135.33,135.22,6.528]
[1641848304682,1.848,135.36,135.22,10.528]
[1641848304880,4.18653329,135.28,135.23,67.4517]
[1641848305079,1.847,135.37,135.25,4.0]
[1641848305281,1.847,135.37,135.25,9.826]
[1641848305480,1.847,135.37,135.28,4.0]
[1641848305680,1.847,135.41,135.28,7.248]
[1641848306080,27.66479,135.38,135.3,27.66479]
[1641848306483,27.66479,135.38,135.28,34.91279]
[1641848307383,4.0,135.37,135.28,7.248]
[1641848307583,1.847,135.36,135.28,7.248]
[1641848308184,27.66479,135.33,135.28,7.248]
[1641848308383,4.18528061,135.35,135.28,7.248]
[1641848309385,4.18528061,135.35,135.23,29.51179]
[1641848310184,27.66479,135.31,135.23,29.51179]
[1641848310384,27.66479,135.31,135.24,4.0]
[1641848310584,27.66479,135.31,135.23,29.51179]
[1641848310785,27.66479,135.31,135.23,27.66479]
[1641848310986,1.848,135.34,135.25,4.0]
[1641848311183,4.18528061,135.35,135.29,22.44658026]
[1641848311384,4.18528061,135.35,135.3,4.0]
[1641848311584,8.061e-05,135.35,135.3,4.0]
[1641848311986,7.75420713,135.43,135.31,4.0]
[1641848312193,7.75420713,135.43,135.31,27.66479]
[1641848312194,27.66479,135.41,135.31,27.66479]
[1641848312388,27.66479,135.41,135.31,100.68729]
[1641848312589,29.51179,135.43,135.31,106.59924609]
[1641848312788,29.51179,135.43,135.31,108.44524609]
[1641848313087,4.18424491,135.34,135.31,108.44524609]
[1641848313287,27.66479,135.43,135.31,35.42274609]
[1641848313488,27.66479,135.43,135.32,20.0]
[1641848313787,27.66479,135.43,135.32,9.199]
[1641848313989,4.0,135.41,135.32,9.199]
[1641848314188,27.66479,135.39,135.32,9.199]
[1641848314590,1.846,135.42,135.32,9.199]
[1641848315788,27.66479,135.43,135.32,9.199]
[1641848316394,27.66479,135.43,135.32,33.199]
[1641848316791,27.66479,135.43,135.33,4.0]
[1641848316990,27.66479,135.43,135.34,4.0]
[1641848317189,27.66479,135.43,135.33,4.0]
[1641848317392,27.66479,135.43,135.34,4.0]
[1641848317594,4.0,135.4,135.31,100.80778882]
[1641848317793,11.177,135.4,135.31,94.89549]
[1641848317993,11.177,135.4,135.3,4.33317606]
[1641848318291,11.177,135.4,135.33,4.18299842]
[1641848318292,31.66479,135.38,135.33,4.18299842]
[1641848318691,27.66479,135.38,135.33,4.18299842]
[1641848319894,37.5742593,135.38,135.33,4.18299842]
[1641848320097,5.846,135.37,135.27,10.09928092]
[1641848320294,27.66479,135.3,135.27,10.09928092]
[1641848320895,27.66479,135.32,135.27,10.09928092]
[1641848321095,27.66479,135.32,135.27,16.69928092]
[1641848321495,27.66479,135.32,135.27,6.6]
[1641848321695,1.847,135.36,135.27,6.6]
[1641848322294,29.51179,135.36,135.34,4.18357539]
[1641848322494,27.66479,135.36,135.34,9.95957539]
[1641848322896,1.847,135.4,135.34,9.95957539]
[1641848323196,1.846,135.42,135.34,9.95957539]
[1641848323397,3.14552541,135.37,135.34,9.95957539]
[1641848324398,3.14552541,135.37,135.34,4.18357539]
[1641848325700,3.14552541,135.37,135.3,31.49696316]
[1641848325998,3.14552541,135.37,135.35,4.18389985]
[1641848326798,1.846,135.39,135.35,4.18389985]
[1641848327001,1.846,135.41,135.35,4.18389985]
[1641848327201,5.846,135.39,135.35,4.18389985]
[1641848327399,4.0,135.39,135.35,4.18389985]
[1641848327598,1.846,135.38,135.35,4.18389985]
[1641848327801,5.846,135.38,135.35,4.18389985]
[1641848328398,27.66479,135.36,135.35,4.18389985]
[1641848328600,1.846,135.38,135.35,4.18389985]
[1641848328802,1.846,135.41,135.35,12.04489985]
[1641848329404,1.846,135.41,135.35,7.861]
[1641848330002,1.846,135.41,135.36,4.18295126]
[1641848330204,27.66479,135.42,135.36,4.18295126]
[1641848330406,1.846,135.41,135.36,4.18295126]
[1641848331006,4.16268909,135.4,135.36,4.18295126]
[1641848333506,4.16268909,135.4,135.36,4.18269685]
[1641848334411,1.846,135.41,135.36,4.18269685]
[1641848334706,4.0,135.39,135.36,4.18269685]
[1641848334907,1.846,135.38,135.36,9.685e-05]
[1641848335910,5.846,135.38,135.36,9.685e-05]
[1641848336109,1.846,135.38,135.36,9.685e-05]
[1641848336310,27.66479,135.37,135.36,9.685e-05]
[1641848336509,31.66479,135.37,135.36,9.685e-05]
[1641848336709,27.66479,135.37,135.36,9.685e-05]
[1641848336910,27.66479,135.37,135.31,15.55168224]
[1641848337711,1.846,135.38,135.31,15.55168224]
[1641848337910,4.0,135.4,135.31,21.73468224]
[1641848338115,1.847,135.41,135.31,21.73468224]
[1641848338312,4.1836172,135.38,135.31,21.73468224]
[1641848338913,4.1836172,135.38,135.32,18.05680013]
[1641848341213,4.1836172,135.38,135.33,15.55168224]
[1641848341914,27.66479,135.39,135.33,15.55168224]
[1641848342113,27.66479,135.39,135.32,18.05680013]
[1641848342315,34.99879,135.39,135.32,18.05680013]
[1641848342715,1.846,135.38,135.32,18.05680013]
[1641848342914,4.0,135.37,135.32,18.05680013]
[1641848343117,4.0,135.37,135.32,15.55168224]
[1641848343515,5.90902323,135.39,135.34,5.91096743]
[1641848343715,27.66479,135.42,135.34,14.51396743]
[1641848343917,15.55168224,135.42,135.34,14.51396743]
[1641848344116,4.0,135.41,135.34,8.603]
[1641848344515,15.55168224,135.42,135.34,8.603]
[1641848345015,27.66479,135.43,135.35,18.05680013]
[1641848345216,1.847,135.45,135.35,18.05680013]
[1641848345417,15.55168224,135.46,135.35,18.05680013]
[1641848345617,15.55168224,135.46,135.35,22.05680013]
[1641848345816,15.55168224,135.46,135.35,18.05680013]
[1641848346019,4.0,135.45,135.35,18.05680013]
[1641848346217,5.846,135.45,135.36,15.55168224]
[1641848346420,1.846,135.45,135.36,15.55168224]
[1641848346618,1.846,135.45,135.36,35.55168224]
[1641848346816,43.21647224,135.48,135.39,4.0]
[1641848347018,43.21647224,135.48,135.39,7.174]
[1641848347318,15.55168224,135.49,135.4,1.845]
[1641848347521,15.55168224,135.49,135.42,4.0]
[1641848347719,15.55168224,135.49,135.43,4.0]
[1641848348521,15.55168224,135.49,135.42,40.63579]
[1641848348723,4.18184958,135.44,135.43,6.50511789]
[1641848348922,1e-08,135.44,135.43,6.50511789]
[1641848349121,1e-08,135.44,135.43,26.50511789]
[1641848349722,15.55168224,135.54,135.43,34.25703798]
[1641848349922,1.845,135.67,135.57,5.90091952]
[1641848350124,1.845,135.67,135.58,1.843]
[1641848350324,107.33489966,135.65,135.58,1.843]
[1641848350524,103.33489966,135.65,135.59,27.66479]
[1641848351023,103.33489966,135.65,135.53,1.843]
[1641848351225,29.50879,135.66,135.53,1.843]
[1641848351422,1.844,135.64,135.52,1.844]
[1641848351624,1.844,135.64,135.57,20.0]
[1641848351824,1.843,135.71,135.57,34.996]
[1641848352023,4.0,135.68,135.57,10.996]
[1641848352223,4.0,135.65,135.57,9.153]
[1641848352425,31.66479,135.63,135.57,9.153]
[1641848352628,31.66479,135.63,135.56,1.843]
[1641848352629,27.66479,135.63,135.53,31.66479]
[1641848352824,1.843,135.62,135.53,27.66479]
[1641848353025,5.843,135.63,135.53,27.66479]
[1641848353327,1.843,135.64,135.53,27.66479]
[1641848353525,1.843,135.64,135.56,4.0]
[1641848353726,27.66479,135.65,135.56,12.431]
[1641848354025,4.0,135.64,135.56,8.431]
[1641848354225,4.0,135.61,135.53,27.66479]
[1641848354426,4.0,135.6,135.53,27.66479]
[1641848354626,6.02070238,135.6,135.53,27.66479]
[1641848355529,4.0,135.56,135.53,27.66479]
[1641848355732,7.716,135.56,135.46,1.844]
[1641848355930,11.716,135.56,135.45,1.844]
[1641848356527,31.66479,135.55,135.45,29.50879]
[1641848356727,29.50979,135.55,135.45,27.66479]
[1641848356929,33.50979,135.55,135.45,27.66479]
[1641848357228,4.0,135.53,135.45,27.66479]
[1641848357530,5.845,135.52,135.43,27.66479]
[1641848357728,4.0,135.51,135.43,27.66479]
[1641848358128,5.845,135.54,135.43,27.66479]
[1641848358329,1.845,135.54,135.43,35.80979]
[1641848358531,27.66479,135.55,135.44,1.845]
[1641848358729,27.66479,135.55,135.44,5.845]
[1641848358927,27.66479,135.55,135.44,11.75130925]
[1641848359129,27.66479,135.55,135.44,7.75130925]
[1641848359329,27.66479,135.55,135.46,4.0]
[1641848359529,27.66479,135.55,135.46,13.79]
[1641848359729,27.66479,135.55,135.46,9.79]
[1641848359929,27.66479,135.55,135.46,7.946]
[1641848360132,1.844,135.54,135.46,7.946]
[1641848360532,1.844,135.54,135.46,35.61079]
[1641848361334,4.0,135.53,135.46,35.61079]
[1641848361537,5.844,135.54,135.46,35.61079]
[1641848361734,1.844,135.54,135.46,35.61079]
[1641848361934,5.844,135.54,135.46,35.61079]
[1641848362136,6.0027921,135.54,135.46,35.61079]
[1641848362335,6.0027921,135.54,135.49,24.0]
[1641848362536,4.1587921,135.54,135.49,9.258]
[1641848363342,4.1587921,135.54,135.49,11.102]
[1641848363740,4.1587921,135.54,135.49,9.258]
[1641848364536,4.1587921,135.54,135.5,27.66479]
[1641848364737,4.1587921,135.54,135.49,9.258]
[1641848365340,4.1587921,135.54,135.49,39.16231041]
[1641848365538,11.04,135.63,135.53,24.0]
[1641848365839,1.844,135.64,135.53,33.138]
[1641848366038,1.843,135.66,135.54,4.0]
[1641848366340,4.0,135.64,135.54,4.0]
[1641848366537,1.843,135.66,135.56,27.66479]
[1641848366738,4.0,135.62,135.56,8.224]
[1641848366938,4.0,135.61,135.53,1.843]
[1641848367139,10.008,135.62,135.5,24.0]
[1641848367338,1.844,135.61,135.5,8.384]
[1641848367539,5.844,135.63,135.51,1.844]
[1641848367739,4.0,135.62,135.5,1.844]
[1641848367938,4.0,135.64,135.5,7.74763031]
[1641848368140,4.0,135.64,135.5,14.88363031]
[1641848368339,1.844,135.66,135.5,14.88363031]
[1641848368340,1.844,135.66,135.5,18.88363031]
[1641848368540,4.0,135.64,135.52,27.66479]
[1641848368740,1.843,135.63,135.52,27.66479]
[1641848368941,5.843,135.66,135.54,20.0]
[1641848369140,33.50779,135.67,135.55,1.843]
[1641848369343,4.0,135.66,135.55,1.843]
[1641848369542,5.843,135.65,135.53,1.843]
[1641848369740,4.0,135.58,135.55,11.41046584]
[1641848369943,8.402,135.58,135.55,11.41046584]
[1641848370143,8.402,135.58,135.55,15.58750937]
[1641848370742,8.402,135.58,135.47,1.843]
[1641848370942,1.844,135.57,135.44,1.844]
[1641848371141,5.844,135.57,135.42,7.7521993]
[1641848371343,4.0,135.56,135.42,7.7521993]
[1641848371544,4.0,135.54,135.42,11.7521993]
[1641848371743,4.0,135.53,135.42,7.7521993]
[1641848371943,1.845,135.52,135.39,1.845]
[1641848372144,1.845,135.52,135.39,5.845]
[1641848372343,1.845,135.53,135.4,4.0]
[1641848372546,29.50979,135.53,135.41,29.50979]
[1641848372745,4.0,135.5,135.41,27.66479]
[1641848373242,27.66479,135.53,135.41,31.66479]
[1641848373243,1.845,135.49,135.41,31.66479]
[1641848373444,1.845,135.54,135.43,20.0]
[1641848373647,1.845,135.6,135.48,24.0]
[1641848373843,1.845,135.6,135.48,32.507]
[1641848374042,4.0,135.6,135.49,1.844]
[1641848374245,4.0,135.58,135.56,4.17755374]
[1641848374444,4.17836853,135.57,135.56,4.17755374]
[1641848374844,6.02236853,135.57,135.56,4.17755374]
[1641848375046,6.02236853,135.57,135.47,27.66479]
[1641848375346,4.17836853,135.57,135.47,29.50879]
[1641848375546,16.50236853,135.57,135.47,29.50879]
[1641848375746,16.50236853,135.57,135.47,27.66479]
[1641848375946,1.844,135.56,135.47,27.66479]
[1641848376146,5.844,135.56,135.47,27.66479]
[1641848376546,29.50879,135.56,135.47,27.66479]
[1641848377749,4.17836853,135.57,135.48,2.49801497]
[1641848377948,27.66479,135.6,135.48,9.59601497]
[1641848378149,4.17855208,135.57,135.48,9.59601497]
[1641848378549,4.17855208,135.57,135.48,7.098]
[1641848379351,4.17855208,135.57,135.49,2.49775315]
[1641848380451,4.17855208,135.57,135.5,4.0]
[1641848380752,4.17855208,135.57,135.52,27.66479]
[1641848380951,4.17855208,135.57,135.52,34.54279]